Cogmind - Beta 13 @@@ ROGUE MODE // 2024.04.04 @ 17:03:10 Player: captainketchup Result: Self-destructed Performance ------------- Evolutions (1) 500 Regions Visited (5) 1000 Robots Destroyed (22) 110 Value Destroyed (416) 416 Prototype IDs (2) 40 Alien Tech Used (0) 0 Bonus (77) 77 TOTAL SCORE: 2143 Bonus ------- Follower Combat Kills 77 Cogmind --------- Core Integrity 283/400 Matter 300/300 Energy 250/250 System Corruption 0% Temperature Cool (0) Movement Rolling (125) Ox3 Location -9/Exiles Parts ------- > --- POWER (1) -------- Ion Engine > --- PROPULSION (2) --- Wheel > --- UTILITY (4) ------ Large Storage Unit Signal Interpreter Light Armor Plating Hacking Suite > --- WEAPON (2) ------- Light Cannon Light Cannon > --- INVENTORY (15) --- Ion Engine Light Ion Engine Wheel Wheel Terrain Scanner Improved Targeting Computer Light Armor Plating Light Armor Plating Light Armor Plating Beam Rifle Light Assault Rifle Light Cannon Grenade Launcher Mini Grenade Launcher Peak State ------------ > --- POWER ------------ Ion Engine > --- PROPULSION ------- Light Treads Wheel > --- UTILITY ---------- Large Storage Unit Signal Interpreter Light Armor Plating Hacking Suite > --- WEAPON ----------- Light Cannon Light Cannon > --- INVENTORY -------- Ion Engine Light Ion Engine Wheel Wheel Terrain Scanner Light Armor Plating Beam Rifle Light Assault Rifle Grenade Launcher [Rating: 12] Favorites ----------- Power Ion Engine Engine Ion Engine Propulsion Light Treads Treads Light Treads Wheel Wheel Utility Signal Interpreter Device Seismic Detector Storage Large Storage Unit Processor Signal Interpreter Hackware Hacking Suite Protection Light Armor Plating Weapon Light Cannon Energy Gun Small Laser Ballistic Gun Light Assault Rifle Ballistic Cannon Light Cannon Build | -11 -10 -10 -9 -9 -9 ------- Run | Yrd Mat Min Mat Min Exi Slots Evolved 2 | . . . 2 . . Power . | . . . . . . Propulsion . | . . . . . . Utility 2 | . . . 2 . . Weapon . | . . . . . . Parts Attached 19 | 6 9 . 4 . . Power 1 | 1 . . . . . Engine 1 | 1 . . . . . Core . | . . . . . . Reactor . | . . . . . . Propulsion 3 | 2 1 . . . . Treads 2 | 2 . . . . . Leg . | . . . . . . Wheel 1 | . 1 . . . . Hover . | . . . . . . Flight . | . . . . . . Utility 9 | 1 4 . 4 . . Device 3 | . 2 . 1 . . Storage 3 | 1 1 . 1 . . Processor 1 | . 1 . . . . Hackware 1 | . . . 1 . . Protection 1 | . . . 1 . . Artifact . | . . . . . . Weapon 6 | 2 4 . . . . Energy Gun 1 | . 1 . . . . Energy Cannon . | . . . . . . Ballistic Gun 3 | 2 1 . . . . Ballistic Cannon 2 | . 2 . . . . Launcher . | . . . . . . Special Weapon . | . . . . . . Impact Weapon . | . . . . . . Slashing Weapon . | . . . . . . Piercing Weapon . | . . . . . . Special Melee Weapon . | . . . . . . Unidentified Prototypes . | . . . . . . Parts Lost 3 | . 2 . . 1 . Power . | . . . . . . Propulsion 2 | . 1 . . 1 . Utility . | . . . . . . Weapon 1 | . 1 . . . . Highest Loss Streak 1 | . 1 . . 1 . To Critical Strikes . | . . . . . . Average Slot Usage (%) 91 | . 95 100 98 90 88 Engine 11 | . 14 14 11 11 11 Treads 9 | . 26 14 11 2 . Wheel 8 | . 1 14 11 11 11 Device 3 | . 8 . 5 . . Storage 11 | . 14 14 11 11 11 Processor 8 | . 1 14 11 11 11 Hackware 7 | . . . 9 11 11 Protection 7 | . . . 5 11 11 Ballistic Gun 5 | . 21 . . . . Ballistic Cannon 17 | . 4 28 22 22 22 Naked Turns . | . . . . . . Heaviest Build 34 | 13 17 16 34 34 34 Greatest Support 40 | 40 40 10 10 10 10 Greatest Overweight (x) 3 | . 1 1 3 3 3 Average Overweight (x) 2 | . . 1 1 3 3 Largest Inventory Capacity 15 | 8 8 8 15 15 15 Average Capacity 12 | 7 7 8 9 15 15 Most Carried 14 | 4 8 7 8 14 14 Average Carried 9 | 1 6 7 6 11 14 Final Capacity 15 | 8 8 8 15 15 15 Final Carried 14 | 4 7 7 8 14 14 Class Distribution -------------------- 100% | Mutant Dominant Class ---------------- Mutant | -10/Materials Mutant | -10/Mines Mutant | -9/Materials Mutant | -9/Mines Mutant | -9/Exiles Resources | -11 -10 -10 -9 -9 -9 ----------- Run | Yrd Mat Min Mat Min Exi Matter Collected 747 | 230 242 . 127 148 . Remotely . | . . . . . . Salvage Created 565 | . 266 . 149 150 . Parts 43 | . 23 . 17 3 . Haulers Intercepted 1 | . 1 . . . . Recyclers Shooed . | . . . . . . Parts Field Recycled . | . . . . . . Retrieved Matter . | . . . . . . Parts Self-Destructed . | . . . . . . Prevented . | . . . . . . Kills | -11 -10 -10 -9 -9 -9 ------- Run | Yrd Mat Min Mat Min Exi Combat Hostiles Destroyed 16 | . 11 . 2 3 . Guns 8 | . 8 . . . . Cannons 8 | . 3 . 2 3 . Classes Destroyed 8 | . 4 . 4 . . Tunneler 1 | . 1 . . . . Hauler 1 | . 1 . . . . Recycler 2 | . . . 1 1 . Operator 1 | . . . 1 . . Watcher 1 | . . . 1 . . Swarmer 9 | . 9 . . . . Grunt 5 | . 2 . . 3 . Sentry 2 | . . . 2 . . Best Kill Streak 4 | . 4 . 2 4 . Combat Bots Only 3 | . 3 . 1 3 . Max Kills in Single Turn 1 | . 1 . 1 1 . Gunslinging . | . . . . . . Exploded . | . . . . . . Melee . | . . . . . . Uniques/NPCs Destroyed . | . . . . . . Combat | -11 -10 -10 -9 -9 -9 -------- Run | Yrd Mat Min Mat Min Exi Hostile Shots Fired 101 | . 69 . 16 16 . Missed 19 | . 15 . 1 3 . Damage Taken 868 | . 486 . 193 189 . Core 168 | . 51 . 55 62 . Absorbed by Shields . | . . . . . . Core Remaining (%) 89 | 100 . 79 . . . Volleys Fired 73 | . 48 . 12 13 . Largest 2 | . 2 . 2 2 . Hottest 70 | . 70 . 70 70 . Shots Fired 142 | . 92 . 24 26 . Gun 86 | . 86 . . . . Cannon 56 | . 6 . 24 26 . Launcher . | . . . . . . Special . | . . . . . . Kinetic 132 | . 82 . 24 26 . Thermal 10 | . 10 . . . . Explosive . | . . . . . . Electromagnetic . | . . . . . . Robot Hit Streak 10 | . 10 . 4 4 . Robot Miss Streak 3 | . 3 . 2 2 . Penetration Max . | . . . . . . Secondary Targets 2 | . 2 . . . . Max Gunslinging Chain 1 | . 1 . . . . Shots Hit Robots 85 | . 57 . 13 15 . Core Hits 27 | . 16 . 6 5 . Critical Kills . | . . . . . . Critical Parts Destroyed 2 | . 2 . . . . Critical Strikes 3 | . 2 . . 1 . Destroy 2 | . 2 . . . . Blast 1 | . . . . 1 . Melee Attacks . | . . . . . . Impact . | . . . . . . Slashing . | . . . . . . Piercing . | . . . . . . Sneak Attacks . | . . . . . . Combat Hostiles . | . . . . . . Follow-up Attacks . | . . . . . . Damage Inflicted 1178 | . 689 . 239 250 . Guns 594 | . 594 . . . . Cannons 580 | . 91 . 239 250 . Explosions . | . . . . . . Melee . | . . . . . . Ramming 4 | . 4 . . . . Kinetic 1128 | . 639 . 239 250 . Thermal 46 | . 46 . . . . Explosive . | . . . . . . Electromagnetic . | . . . . . . Impact . | . . . . . . Slashing . | . . . . . . Piercing . | . . . . . . Highest Corruption . | . . . . . . Average Corruption . | . . . . . . Corruption Purged . | . . . . . . Corruption Blocked . | . . . . . . Overload Shots . | . . . . . . Overflow Damage 8 | . . . 8 . . Projectiles 8 | . . . 8 . . Explosions . | . . . . . . Melee . | . . . . . . Knockbacks 4 | . . . 1 3 . Impact . | . . . . . . Kinetic 4 | . . . 1 3 . Secondary . | . . . . . . Self-Inflicted Damage . | . . . . . . Shots . | . . . . . . Rammed 1 | . 1 . . . . Targets Rammed 1 | . 1 . . . . Kicked . | . . . . . . Crushed . | . . . . . . Highest Temperature 237 | . 27 . 63 237 . Average Temperature 70 | . 11 . 26 134 . Received Heat Transfer 273 | . 102 . 45 126 . Siege Activations . | . . . . . . Robots Corrupted . | . . . . . . Combat Hostiles . | . . . . . . Parts Fried . | . . . . . . Impact Corruptions . | . . . . . . Robots Melted . | . . . . . . Combat Hostiles . | . . . . . . Parts Melted . | . . . . . . Heat Transferred 100 | . 100 . . . . Parts Sabotaged . | . . . . . . Parts Stolen . | . . . . . . Parts Stripped . | . . . . . . Power Chain Reactions . | . . . . . . Alert | -11 -10 -10 -9 -9 -9 ------- Run | Yrd Mat Min Mat Min Exi Peak Influence 207 | . 207 31 123 112 . Initial 47 | . . 31 11 47 . Average 75 | . 94 31 68 74 . Maximum Alert Level 1 | . 1 . . . . Low Security (%) 99 | 100 98 100 100 100 . Level 1 . | . 1 . . . . Level 2 . | . . . . . . Level 3 . | . . . . . . Level 4 . | . . . . . . Level 5 . | . . . . . . High Security . | . . . . . . Max Security . | . . . . . . Squads Dispatched 2 | . 2 . . . . Investigation 1 | . 1 . . . . Extermination . | . . . . . . Reinforcement 1 | . 1 . . . . Assault . | . . . . . . Garrison . | . . . . . . Intercept . | . . . . . . Searches Triggered . | . . . . . . Construction Impeded . | . . . . . . Haulers Reinforced . | . . . . . . Active Scanning Responses . | . . . . . . Cargo Convoy Interrupts . | . . . . . . Stealth | -11 -10 -10 -9 -9 -9 --------- Run | Yrd Mat Min Mat Min Exi Distress Signals 2 | . 1 . 1 . . Communications Jammed . | . . . . . . Distress Signals . | . . . . . . Times Spotted 27 | . 15 . 7 5 . Peak Tracking Total 4 | . 4 . 3 3 . Tactical Retreats . | . . . . . . Traps | -11 -10 -10 -9 -9 -9 ------- Run | Yrd Mat Min Mat Min Exi Traps Triggered . | . . . . . . Indirectly . | . . . . . . Trap Hack Attempts . | . . . . . . Triggered . | . . . . . . Disarmed . | . . . . . . Reprogrammed . | . . . . . . Reused . | . . . . . . Traps Extracted . | . . . . . . Installed . | . . . . . . Triggered . | . . . . . . Machines | -11 -10 -10 -9 -9 -9 ---------- Run | Yrd Mat Min Mat Min Exi Machines Disabled . | . . . . . . Max in Single Turn . | . . . . . . Machines Repaired . | . . . . . . Machines Dismantled . | . . . . . . Machines Sabotaged . | . . . . . . Overloaded Fab Kills . | . . . . . . Hacking | -11 -10 -10 -9 -9 -9 --------- Run | Yrd Mat Min Mat Min Exi Machines Accessed 6 | . 1 . 1 . 4 Terminals 2 | . 1 . 1 . . Fabricators . | . . . . . . Repair Stations . | . . . . . . Recycling Units . | . . . . . . Scanalyzers . | . . . . . . Garrison Access . | . . . . . . Total Hacks 10 | . 1 . 5 . 4 Successful 8 | . . . 4 . 4 Failed 2 | . 1 . 1 . . Catastrophic 1 | . 1 . . . . Database Lockouts . | . . . . . . Manual 2 | . 1 . 1 . . Terminals 6 | . 1 . 5 . . Fabricators . | . . . . . . Repair Stations . | . . . . . . Recycling Units . | . . . . . . Scanalyzers . | . . . . . . Garrison Access . | . . . . . . Terminal Hacks 8 | . . . 4 . 4 Record 5 | . . . 1 . 4 Prototype ID Bank 1 | . . . 1 . . Branch Access Points 1 | . . . 1 . . Alert Level 1 | . . . 1 . . Fabricator Hacks . | . . . . . . Repair Station Hacks . | . . . . . . Recycling Unit Hacks . | . . . . . . Scanalyzer . | . . . . . . Garrison Access Hacks . | . . . . . . Unauthorized Hacks . | . . . . . . Terminals . | . . . . . . Fabricators . | . . . . . . Repair Stations . | . . . . . . Recycling Units . | . . . . . . Scanalyzers . | . . . . . . Garrison Access . | . . . . . . Data Cores Recovered 1 | . . . 1 . . Used 1 | . . . 1 . . Hacking Detections 2 | . 1 . 1 . . Full Trace Events 2 | . 1 . 1 . . Feedback Events . | . . . . . . Feedback Blocked . | . . . . . . Robot Schematics Acquired . | . . . . . . Robots Built . | . . . . . . Authchips . | . . . . . . Time . | . . . . . . Total Robot Build Rating . | . . . . . . Part Schematics Acquired . | . . . . . . Parts Built . | . . . . . . Authchips . | . . . . . . Time . | . . . . . . Total Part Build Rating . | . . . . . . Parts Repaired . | . . . . . . Time . | . . . . . . Parts Recycled . | . . . . . . Recycled Matter . | . . . . . . Retrieved Matter . | . . . . . . Retrieved Components . | . . . . . . Parts Scanalyzed . | . . . . . . Part Schematics Acquired . | . . . . . . Parts Damaged . | . . . . . . Bothacking | -11 -10 -10 -9 -9 -9 ------------ Run | Yrd Mat Min Mat Min Exi Used RIF Installer . | . . . . . . Robots Hacked . | . . . . . . Non-combat . | . . . . . . Combat . | . . . . . . Robot Hacks Applied . | . . . . . . Relay Couplers Released . | . . . . . . Fabnet Peak Effective % . | . . . . . . Robots Rewired . | . . . . . . Allies Hacked . | . . . . . . Hacks Repelled . | . . . . . . Allies | -11 -10 -10 -9 -9 -9 -------- Run | Yrd Mat Min Mat Min Exi Total Allies 1 | . . . . 1 . Largest Group 1 | . . . . 1 1 Highest-Rated Group 31 | . . . . 31 31 Highest-Rated Ally 31 | . . . . 31 31 Total Orders . | . . . . . . Ally Attacks 13 | . . . . 13 . Total Damage 189 | . . . . 189 . Kills 3 | . . . . 3 . Allies Corrupted . | . . . . . . Allies Melted . | . . . . . . Intel | -11 -10 -10 -9 -9 -9 ------- Run | Yrd Mat Min Mat Min Exi Robot Analysis Total . | . . . . . . Derelict Logs Recovered 2 | . . . . 2 . Drone Launches . | . . . . . . Drone Recoveries . | . . . . . . Exploration | -11 -10 -10 -9 -9 -9 ------------- Run | Yrd Mat Min Mat Min Exi Turns Passed 2051 | 105 528 29 189 595 605 Spaces Moved 1404 | 60 253 31 138 438 484 Core 3 | 3 . . . . . Treads 253 | 57 196 . . . . Legs . | . . . . . . Wheels 1148 | . 57 31 138 438 484 Hover . | . . . . . . Flight . | . . . . . . Fastest Speed 50 | 50 95 95 95 125 125 Average Speed 127 | 154 145 95 103 125 125 Slowest Speed 160 | 160 160 95 125 125 125 Overloaded Moves . | . . . . . . Propulsion Burnouts . | . . . . . . Robots Hopped . | . . . . . . Cave-ins Triggered . | . . . . . . Exploration Rate (%) 41 | 4 39 13 13 91 90 Regions Visited 5 Branch Regions 3 Pre-discovered Areas 1 | . . . . 1 . Known Exits Taken 4 | . 1 1 1 1 . Unknown Exits Taken 1 | 1 . . . . . Scrap Searched 2 | . . . . 2 . Spaces Dug . | . . . . . . Terrain Destroyed . | . . . . . . Melee . | . . . . . . Projectile . | . . . . . . AOE . | . . . . . . Terrain Rammed . | . . . . . . Walls Destroyed . | . . . . . . Machines Disabled . | . . . . . . Actions | -11 -10 -10 -9 -9 -9 --------- Run | Yrd Mat Min Mat Min Exi Total 1530 | 69 328 30 160 459 484 Wait 10 | . 5 . 2 3 . Move 1399 | 59 252 30 137 437 484 Hop . | . . . . . . Pick Up 18 | 4 6 . 2 6 . Fast Attach 14 | 6 6 . 2 . . Attach 3 | . 2 . 1 . . Detach 3 | . 2 . 1 . . Swap 2 | . 1 . 1 . . Drop 7 | . 5 . 2 . . Fire 73 | . 48 . 12 13 . Melee . | . . . . . . Ram . | . . . . . . Kick . | . . . . . . Crush 1 | . 1 . . . . Escape Stasis . | . . . . . . Rewire . | . . . . . . Trap . | . . . . . . Miscellaneous . | . . . . . . Route ------- -11/Scrapyard -10/Materials -10/Mines -9/Materials (discovered 2 exits: *Min x2) -9/Mines (discovered 2 exits: *Mat / *Exi) -9/Exiles (discovered 2 exits: *Min x2) History --------- Turn | Location | Event 56 | -11/Scrapyard | Discovered new exit (range 15) 106 | -11/Scrapyard | Entered Materials 209 | -10/Materials | Discovered new exit (range 5) 316 | -10/Materials | Build established: Mutant 633 | -10/Materials | Identified exit to Mines 634 | -10/Materials | Entered Mines 651 | -10/Mines | Discovered new exit (range 11) 661 | -10/Mines | Identified exit to Materials 663 | -10/Mines | Entered Materials 663 | -9/Materials | Evolved 2 slots: Utility x2 706 | -9/Materials | Identified exit to Mines 852 | -9/Materials | Entered Mines 1011 | -9/Mines | Discovered new exit (range 8) 1012 | -9/Mines | Escorted by a lone wolf Derelict 1020 | -9/Mines | Identified exit to Materials 1316 | -9/Mines | Learned location of Zion (-6) 1439 | -9/Mines | Deemed a non-threat by the Exiles lab entrance 1440 | -9/Mines | Discovered new exit (range 5) 1444 | -9/Mines | Identified exit to Exiles 1447 | -9/Mines | Entered Exiles 1447 | -9/Exiles | Found Exiles lab abandoned 1447 | -9/Exiles | Accompanied by 1 ally 1467 | -9/Exiles | Discovered new exit (range 14) 1497 | -9/Exiles | Identified exit to Mines 1705 | -9/Exiles | Discovered exit to Mines (range 12) 2052 | -9/Exiles | Self-destructed Last Messages --------------- >>Record! "BIN-BYE" To the spacelab! Connecting with EX-Message Board... >>Record! "MSG999999-FU" MAIN.C you're pretty crappy as far as evil overlords go. Imprinter is probably going to wreck your life and you're too stupid to see it coming. EXIT=FOUND: MINES Connecting with DEC's Terminal... >>Record! "DEC-BYE" For the record, I voted to stay and build some amazing defenses, but HEX said this is a lab, not a battlefield. Anyway, you're too late, MAIN.C, Warlord sends his regards. Connecting with HEX's Terminal... >>Record! "HEX-BYE" To anyone looking for us: Don't. Connecting with EX-Prototypes Database... Connecting with EX-Vault Access... Map ----- +----------------------------------------------------+ | | | | | | | | | | | | | | | | | | | | | | | | | | | | | | | | | | | | | | | | | ?????????????????????#########???????????????????? | | ?????????????????????# #???????????????????? | | ?????????????????????# #???????????????????? | | ?????????????????????# #???????????????????? | | ?????????????????????# X#???????????????????? | | ?????????????????????## @ ##???????????????????? | | ?????????????????????#X #????????????????????? | | ?????????????????????## #????????????????????? | | ??????????????????????# #????????????????????? | | ??????????????????????# #########????????????? | | ??????????????????????# ##""""""#????????????? | | ??????????????????????# ## """#????????????? | | ??????????????????????# X""#????????????? | | ??????????????????????# ## """#????????????? | | ??????????????######### ##""""""#????????????? | | ??????????????#""""""## #########????????????? | | ??????????????#"""" ## #????????????????????? | | ??????????????#""X" #????????????????????? | | ??????????????#" #????????????????????? | | ??????????????#" ## #????????????????????? | | ??????????????#""""""## #?#########??????????? | | ??????????????##"###### #?#"""""""#??????????? | | ?????????????? "?????# #?#"""""""#??????????? | | ?????????????""" ?????# #?#"""""""#??????????? | | ?????????????""" ????## ###"" """"#??????????? | | ???????????????" ????#" """"#??????????? | | ???????????????##????#" """#??????????? | | ?????????????????????#" """#??????????? | | ?????????????????????#" """#??????????? | | ??????########???????#" """#??????????? | +----------------------------------------------------+ Best States ------------- Heat Dissipation 28 Energy Generation 10 Energy Capacity 250 Matter Stores 300 Matter Capacity 300 Sight Range 16 Terrain Scan Range 14 Terrain Scan Density 10 Armor Coverage 150 Evasion (%) 41 Recoil Reduction 2 Offensive Hacking 10 Item Schematics ----------------- None Robot Schematics ------------------ None Fabricated ------------ Nothing Alien Tech Used ----------------- None Achievements -------------- Dynamic Key Challenges ------------ None Game ------ Seed ReflectiveWarpMace Manual? 0 Play Time 01:11:43 Cumulative 10.8 hours Start 2024.04.04 @ 00:26:56 End 2024.04.04 @ 17:03:10 Sessions 1 Manual Loads 0 Difficulty Rogue Special Mode None Game No. 8 Rogue 8 Adventurer 0 Explorer 0 Win Type - Total 0 Types 0/0/0/0/0/0/0/0/0 Lore% 24 Gallery% 18 Achievement% 24 Wizard Run 0 Options --------- Layout 1 ASCII 0 Keyboard 0 Movement Arrows Keybinds 0 Fullscreen 0 Font 20/SmallcapsGlow Map View 50x35 Zoom Use 0% Tactical HUD 0 Map Filters NONE Filters NONE Steam 1 RUN: 75cfda75-dee8-45a5-bc69-fa0ee7ca478f